Cogmind - Beta 13 X1 @@@ ROGUE MODE // 2023.10.21 @ 14:38:18 Player: Plexion Result: Destroyed by EX-DEC with AWS/EX-DEC Performance ------------- Evolutions (1) 500 Regions Visited (5) 1000 Robots Destroyed (46) 230 Value Destroyed (947) 947 Prototype IDs (4) 80 Alien Tech Used (0) 0 Bonus (-1122) -1122 TOTAL SCORE: 1635 Bonus ------- Follower Combat Kills 72 Friendly Fire -1194 Cogmind --------- Core Integrity 0/400 Matter 300/300 Energy 310/310 System Corruption 5% Temperature Cool (0) Movement Treading (240) Ox1 Location -9/Exiles Parts ------- > --- POWER (1) -------- Reinforced Fission Core > --- PROPULSION (3) --- Light Treads Light Treads Advanced Myomer Leg > --- UTILITY (3) ------ Large Storage Unit Improved Targeting Computer Hardened Light Armor Plating > --- WEAPON (2) ------- Heavy Rocket Launcher Makeshift Spear > --- INVENTORY (15) --- Advanced Myomer Leg Experimental Heat Sink YI-UF0's Bottomless Matter Pit (1169) Gravity Neutralizer Improved Targeting Computer Hardened Light Armor Plating Hardened Light Armor Plating Hardened Light Armor Plating Rocket Launcher Peak State ------------ > --- POWER ------------ Reinforced Fission Core > --- PROPULSION ------- Light Treads Advanced Myomer Leg Advanced Myomer Leg > --- UTILITY ---------- Large Storage Unit Improved Targeting Computer Hardened Light Armor Plating > --- WEAPON ----------- Heavy Rocket Launcher Makeshift Spear > --- INVENTORY -------- Experimental Heat Sink YI-UF0's Bottomless Matter Pit Gravity Neutralizer Improved Targeting Computer Hardened Light Armor Plating Hardened Light Armor Plating Hardened Light Armor Plating Rocket Launcher [Rating: 39] Favorites ----------- Power Improved Ion Engine Engine Improved Ion Engine Power Core Reinforced Fission Core Propulsion Light Treads Treads Light Treads Leg Advanced Myomer Leg Utility Improved Targeting Computer Device Experimental Heat Sink Storage Large Storage Unit Processor Improved Targeting Computer Protection Hardened Light Armor Plating Weapon Heavy Assault Rifle Energy Gun Medium Laser Ballistic Gun Heavy Assault Rifle Launcher Heavy Rocket Launcher Impact Weapon Mace Piercing Weapon Makeshift Spear Build | -11 -10 -10 -9 -9 -9 ------- Run | Jun Mat Min Mat Min Exi Slots Evolved 2 | . . . 2 . . Power . | . . . . . . Propulsion 1 | . . . 1 . . Utility 1 | . . . 1 . . Weapon . | . . . . . . Parts Attached 58 | 6 5 2 25 . 20 Power 5 | 2 . . 2 . 1 Engine 4 | 2 . . 2 . . Core 1 | . . . . . 1 Reactor . | . . . . . . Propulsion 13 | 1 1 . 5 . 6 Treads 11 | 1 1 . 5 . 4 Leg 2 | . . . . . 2 Wheel . | . . . . . . Hover . | . . . . . . Flight . | . . . . . . Utility 15 | 1 2 . 8 . 4 Device 2 | . . . . . 2 Storage 3 | 1 . . 2 . . Processor 2 | . 1 . 1 . . Hackware . | . . . . . . Protection 8 | . 1 . 5 . 2 Artifact . | . . . . . . Weapon 25 | 2 2 2 10 . 9 Energy Gun 3 | 1 1 1 . . . Energy Cannon . | . . . . . . Ballistic Gun 14 | 1 . . 8 . 5 Ballistic Cannon . | . . . . . . Launcher 4 | . 1 1 . . 2 Special Weapon . | . . . . . . Impact Weapon 2 | . . . 2 . . Slashing Weapon . | . . . . . . Piercing Weapon 2 | . . . . . 2 Special Melee Weapon . | . . . . . . Unidentified Prototypes 4 | . . . 1 . 3 Parts Lost 14 | . . . 2 . 12 Power 1 | . . . . . 1 Propulsion 5 | . . . . . 5 Utility 3 | . . . 2 . 1 Weapon 5 | . . . . . 5 Highest Loss Streak 7 | . . . 1 . 7 To Critical Strikes 7 | . . . . . 7 Average Slot Usage (%) 96 | . 83 100 97 100 93 Engine 11 | . 14 14 11 11 6 Treads 29 | . 22 28 32 33 24 Storage 11 | . 14 14 11 11 11 Processor 10 | . 3 14 11 11 11 Protection 7 | . . . 9 11 10 Energy Gun 4 | . 13 14 . . . Ballistic Gun 18 | . 14 14 21 22 16 Naked Turns . | . . . . . . Heaviest Build 55 | 14 15 14 38 38 55 Greatest Support 60 | 20 40 40 60 60 60 Greatest Overweight (x) 9 | . . . . . 9 Average Overweight (x) . | . . . . . . Largest Inventory Capacity 15 | 8 8 8 15 15 15 Average Capacity 11 | 7 8 8 10 15 15 Most Carried 15 | 3 4 6 15 15 15 Average Carried 9 | 1 3 4 10 15 11 Final Capacity 15 | 8 8 8 15 15 15 Final Carried 15 | 3 3 6 15 15 9 Class Distribution -------------------- 61% | Scavenger-Mutant 38% | Mutant Dominant Class ---------------- Mutant | -10/Materials Mutant | -10/Mines Scavenger-Mutant | -9/Materials Scavenger-Mutant | -9/Mines Scavenger-Mutant | -9/Exiles Resources | -11 -10 -10 -9 -9 -9 ----------- Run | Jun Mat Min Mat Min Exi Matter Collected 3488 | 224 121 82 1163 1054 844 Remotely . | . . . . . . Salvage Created 1986 | . 185 280 1060 176 285 Parts 109 | . 14 9 59 15 12 Haulers Intercepted 4 | . . . 4 . . Recyclers Shooed 6 | . 2 . 3 1 . Parts Field Recycled . | . . . . . . Retrieved Matter . | . . . . . . Parts Self-Destructed . | . . . . . . Prevented . | . . . . . . Kills | -11 -10 -10 -9 -9 -9 ------- Run | Jun Mat Min Mat Min Exi Combat Hostiles Destroyed 29 | . 5 4 13 4 3 Melee 1 | . . . . . 1 Guns 22 | . 2 2 13 4 1 AOE 6 | . 3 2 . . 1 Classes Destroyed 12 | . 4 . 6 . 2 Worker 1 | . . . 1 . . Tunneler 3 | . . . 1 2 . Hauler 4 | . . . 4 . . Recycler 5 | . 1 1 3 . . Mechanic 1 | . . . 1 . . Turret 1 | . . . . . 1 Watcher 4 | . 1 . 3 . . Swarmer 8 | . 3 2 3 . . Grunt 11 | . 2 2 3 4 . Brawler 1 | . . . 1 . . Sentry 6 | . . . 6 . . Assembled 2 | . . . . . 2 Best Kill Streak 3 | . 3 3 3 2 3 Combat Bots Only 3 | . 3 2 3 2 3 Max Kills in Single Turn 2 | . 2 2 2 1 1 Gunslinging . | . . . . . . Exploded 2 | . 2 2 . . 1 Melee 1 | . . . . . 1 Uniques/NPCs Destroyed 2 | . . 1 . . 1 YI-UF0 (-10/Mines) 8R-AWN (-9/Exiles) Combat | -11 -10 -10 -9 -9 -9 -------- Run | Jun Mat Min Mat Min Exi Damage Taken 2709 | . 47 71 725 215 1651 Core 425 | . 6 18 157 38 206 Absorbed by Shields . | . . . . . . Core Remaining (%) 95 | 100 . 90 . . . Volleys Fired 176 | . 10 20 68 15 63 Largest 2 | . 2 2 2 2 2 Hottest 70 | . 70 70 70 46 46 Shots Fired 331 | . 18 38 136 30 109 Gun 315 | . 16 37 136 30 96 Cannon . | . . . . . . Launcher 16 | . 2 1 . . 13 Special . | . . . . . . Kinetic 286 | . 8 19 133 30 96 Thermal 29 | . 8 18 3 . . Explosive 16 | . 2 1 . . 13 Electromagnetic . | . . . . . . Robot Hit Streak 23 | . 8 10 22 10 23 Robot Miss Streak 3 | . 2 2 3 1 2 Penetration Max . | . . . . . . Secondary Targets 2 | . 1 . 1 . . Max Gunslinging Chain 1 | . 1 . 1 . . Shots Hit Robots 249 | . 12 30 93 22 92 Core Hits 96 | . 11 14 37 10 24 Critical Kills 1 | . . 1 . . . Critical Parts Destroyed 1 | . . . 1 . . Critical Strikes 5 | . . 2 1 . 2 Burn 1 | . . 1 . . . Destroy 3 | . . 1 1 . 1 Impale 1 | . . . . . 1 Melee Attacks 16 | . . . 5 . 11 Impact 5 | . . . 5 . . Slashing . | . . . . . . Piercing 11 | . . . . . 11 Sneak Attacks . | . . . . . . Combat Hostiles . | . . . . . . Follow-up Attacks . | . . . . . . Damage Inflicted 4565 | . 288 527 1430 362 1958 Guns 3573 | . 144 396 1426 343 1264 Cannons . | . . . . . . Explosions 626 | . 129 98 . . 399 Melee 295 | . . . . . 295 Ramming 71 | . 15 33 4 19 . Kinetic 3310 | . 71 218 1414 343 1264 Thermal 263 | . 73 178 12 . . Explosive 626 | . 129 98 . . 399 Electromagnetic . | . . . . . . Impact . | . . . . . . Slashing . | . . . . . . Piercing 295 | . . . . . 295 Highest Corruption 5 | . . . . . 5 Average Corruption 3 | . . . . . 3 Corruption Purged . | . . . . . . Corruption Blocked . | . . . . . . Overload Shots . | . . . . . . Overflow Damage 4 | . . . . . 4 Projectiles . | . . . . . . Explosions 4 | . . . . . 4 Melee . | . . . . . . Knockbacks . | . . . . . . Impact . | . . . . . . Kinetic . | . . . . . . Secondary . | . . . . . . Self-Inflicted Damage 4 | . 4 . . . . Shots 1 | . 1 . . . . Rammed 15 | . 4 7 . 4 . Targets Rammed 20 | . 4 8 2 6 . Kicked . | . . . . . . Crushed 5 | . . 1 2 2 . Highest Temperature 192 | . 36 96 33 18 192 Average Temperature 35 | . 14 29 9 10 97 Received Heat Transfer 462 | . . 51 258 123 30 Siege Activations . | . . . . . . Robots Corrupted . | . . . . . . Combat Hostiles . | . . . . . . Parts Fried . | . . . . . . Impact Corruptions . | . . . . . . Robots Melted . | . . . . . . Combat Hostiles . | . . . . . . Parts Melted . | . . . . . . Heat Transferred 851 | . 222 592 37 . . Parts Sabotaged . | . . . . . . Parts Stolen . | . . . . . . Parts Stripped . | . . . . . . Power Chain Reactions . | . . . . . . Missiles Intercepted . | . . . . . . Alert | -11 -10 -10 -9 -9 -9 ------- Run | Jun Mat Min Mat Min Exi Peak Influence 261 | . 134 121 261 192 . Initial 82 | . . 1 . 82 . Average 84 | . 53 31 163 46 . Maximum Alert Level 1 | . . . 1 . . Low Security (%) 89 | 100 100 100 70 100 . Level 1 10 | . . . 29 . . Level 2 . | . . . . . . Level 3 . | . . . . . . Level 4 . | . . . . . . Level 5 . | . . . . . . High Security . | . . . . . . Max Security . | . . . . . . Squads Dispatched 3 | . . . 3 . . Investigation 1 | . . . 1 . . Extermination . | . . . . . . Reinforcement 2 | . . . 2 . . Assault . | . . . . . . Garrison . | . . . . . . Intercept . | . . . . . . Searches Triggered . | . . . . . . Construction Impeded . | . . . . . . Haulers Reinforced . | . . . . . . Active Scanning Responses . | . . . . . . Cargo Convoy Interrupts . | . . . . . . Stealth | -11 -10 -10 -9 -9 -9 --------- Run | Jun Mat Min Mat Min Exi Distress Signals 3 | . . . 3 . . Communications Jammed . | . . . . . . Distress Signals . | . . . . . . Times Spotted 75 | . 6 5 27 4 33 Peak Tracking Total 9 | . 3 2 3 2 9 Tactical Retreats 6 | . . . 2 . 4 Traps | -11 -10 -10 -9 -9 -9 ------- Run | Jun Mat Min Mat Min Exi Traps Triggered 1 | . . . 1 . . Indirectly . | . . . . . . Trap Hack Attempts . | . . . . . . Triggered . | . . . . . . Disarmed . | . . . . . . Reprogrammed . | . . . . . . Reused . | . . . . . . Traps Extracted . | . . . . . . Installed . | . . . . . . Triggered . | . . . . . . Machines | -11 -10 -10 -9 -9 -9 ---------- Run | Jun Mat Min Mat Min Exi Machines Disabled 6 | . . 1 . . 5 Max in Single Turn 1 | . . 1 . . 1 Machines Repaired . | . . . . . . Machines Sabotaged . | . . . . . . Overloaded Fab Kills . | . . . . . . Hacking | -11 -10 -10 -9 -9 -9 --------- Run | Jun Mat Min Mat Min Exi Machines Accessed 9 | . 1 . 6 1 1 Terminals 5 | . 1 . 4 . . Fabricators . | . . . . . . Repair Stations . | . . . . . . Recycling Units 2 | . . . 2 . . Scanalyzers . | . . . . . . Garrison Access . | . . . . . . Total Hacks 25 | . 3 . 20 1 1 Successful 13 | . 1 . 10 1 1 Failed 11 | . 1 . 10 . . Catastrophic 1 | . . . 1 . . Database Lockouts 1 | . 1 . . . . Manual 23 | . 3 . 20 . . Terminals 14 | . 3 . 11 . . Fabricators . | . . . . . . Repair Stations . | . . . . . . Recycling Units 9 | . . . 9 . . Scanalyzers . | . . . . . . Garrison Access . | . . . . . . Terminal Hacks 6 | . 1 . 3 1 1 Record 1 | . . . . . 1 Robot Analysis 2 | . 1 . 1 . . Open Door 1 | . . . . 1 . Zone Layout 2 | . . . 2 . . Fabricator Hacks . | . . . . . . Repair Station Hacks . | . . . . . . Recycling Unit Hacks . | . . . . . . Scanalyzer . | . . . . . . Garrison Access Hacks . | . . . . . . Unauthorized Hacks 7 | . . . 7 . . Terminals . | . . . . . . Fabricators . | . . . . . . Repair Stations . | . . . . . . Recycling Units 7 | . . . 7 . . Monitor 2 | . . . 2 . . Reject 2 | . . . 2 . . Recyclers 1 | . . . 1 . . Mask 2 | . . . 2 . . Scanalyzers . | . . . . . . Garrison Access . | . . . . . . Data Cores Recovered . | . . . . . . Used . | . . . . . . Hacking Detections 5 | . . . 5 . . Full Trace Events . | . . . . . . Feedback Events . | . . . . . . Feedback Blocked . | . . . . . . Robot Schematics Acquired . | . . . . . . Robots Built . | . . . . . . Authchips . | . . . . . . Time . | . . . . . . Total Robot Build Rating . | . . . . . . Part Schematics Acquired . | . . . . . . Parts Built . | . . . . . . Authchips . | . . . . . . Time . | . . . . . . Total Part Build Rating . | . . . . . . Parts Repaired . | . . . . . . Time . | . . . . . . Parts Recycled . | . . . . . . Recycled Matter . | . . . . . . Retrieved Matter . | . . . . . . Retrieved Components . | . . . . . . Parts Scanalyzed . | . . . . . . Part Schematics Acquired . | . . . . . . Parts Damaged . | . . . . . . Bothacking | -11 -10 -10 -9 -9 -9 ------------ Run | Jun Mat Min Mat Min Exi Used RIF Installer . | . . . . . . Robots Hacked . | . . . . . . Non-combat . | . . . . . . Combat . | . . . . . . Robot Hacks Applied . | . . . . . . Relay Couplers Released . | . . . . . . Fabnet Peak Effective % . | . . . . . . Robots Rewired . | . . . . . . Allies Hacked . | . . . . . . Hacks Repelled . | . . . . . . Allies | -11 -10 -10 -9 -9 -9 -------- Run | Jun Mat Min Mat Min Exi Total Allies 3 | . . 3 . . . Largest Group 3 | . . 3 3 . . Highest-Rated Group 40 | . . 40 40 . . Highest-Rated Ally 16 | . . 16 16 . . Total Orders . | . . . . . . Ally Attacks 28 | . . . 28 . . Total Damage 302 | . . . 302 . . Kills 5 | . . . 5 . . Allies Corrupted . | . . . . . . Allies Melted . | . . . . . . Intel | -11 -10 -10 -9 -9 -9 ------- Run | Jun Mat Min Mat Min Exi Robot Analysis Total 2 | . 1 . 1 . . Derelict Logs Recovered 2 | . . 1 . 1 . Drone Launches . | . . . . . . Drone Recoveries . | . . . . . . Exploration | -11 -10 -10 -9 -9 -9 ------------- Run | Jun Mat Min Mat Min Exi Turns Passed 5335 | 66 473 1095 1509 1106 1086 Spaces Moved 2834 | 36 268 635 762 652 481 Core 2 | 1 . . . . 1 Treads 2763 | 35 268 635 762 652 411 Legs 69 | . . . . . 69 Wheels . | . . . . . . Hover . | . . . . . . Flight . | . . . . . . Fastest Speed 50 | 50 160 160 160 160 120 Average Speed 160 | 156 160 160 160 160 162 Slowest Speed 500 | 160 160 160 160 160 500 Overloaded Moves . | . . . . . . Propulsion Burnouts . | . . . . . . Robots Hopped . | . . . . . . Cave-ins Triggered . | . . . . . . Exploration Rate (%) 62 | 3 46 97 67 96 67 Regions Visited 5 Branch Regions 3 Pre-discovered Areas 2 | . . . . 1 1 Known Exits Taken . | . . . . . . Unknown Exits Taken 5 | 1 1 1 1 1 . Scrap Searched 3 | . . 1 . 2 . Spaces Dug 3 | . . . 3 . . Terrain Destroyed 29 | . 9 10 3 . 7 Melee 3 | . . . 3 . . Projectile . | . . . . . . AOE 26 | . 9 10 . . 7 Terrain Rammed . | . . . . . . Walls Destroyed . | . . . . . . Machines Disabled . | . . . . . . Actions | -11 -10 -10 -9 -9 -9 --------- Run | Jun Mat Min Mat Min Exi Total 3261 | 43 291 670 910 685 662 Wait 92 | . 2 3 12 7 68 Move 2829 | 35 267 634 761 651 481 Hop . | . . . . . . Pick Up 35 | 2 1 3 19 3 7 Fast Attach 16 | 5 2 . 2 . 7 Attach 12 | . 1 . 2 . 9 Detach 5 | . 1 . . . 4 Swap 30 | 1 2 2 21 . 4 Drop 30 | . 1 . 18 3 8 Fire 176 | . 10 20 68 15 63 Melee 16 | . . . 5 . 11 Ram . | . . . . . . Kick . | . . . . . . Crush 20 | . 4 8 2 6 . Escape Stasis . | . . . . . . Rewire . | . . . . . . Trap . | . . . . . . Miscellaneous . | . . . . . . Route ------- -11/Junkyard -10/Materials (discovered 2 exits: [*Min] / [*Sub]) -10/Mines (discovered 2 exits: *Mat x2) -9/Materials (discovered 6 exits: [*Mat x3] / *Min x2 / [*Sto]) -9/Mines (discovered 3 exits: [*Mat x2] / *Exi) -9/Exiles (discovered 1 exit: [*Min]) History --------- Turn | Location | Event 22 | -11/Junkyard | Discovered new exit (range 15) 67 | -11/Junkyard | Entered Materials 280 | -10/Materials | Central database locked down 308 | -10/Materials | Discovered new exit (range 8) 315 | -10/Materials | Build established: Mutant 437 | -10/Materials | Discovered new exit (range 16) 540 | -10/Materials | Entered Mines 665 | -10/Mines | Discovered new exit (range 13) 844 | -10/Mines | YI-UF0 nonchalantly dropped a Grenade Launcher on the ground 1179 | -10/Mines | Assisted by bots powering up and referring to "LRC-V3" 1214 | -10/Mines | Discovered new exit (range 12) 1250 | -10/Mines | Destroyed YI-UF0 1261 | -10/Mines | Found Prototype Storage 1281 | -10/Mines | Learned Materials terminal intel 1635 | -10/Mines | Entered Materials 1635 | -9/Materials | Accompanied by 3 allies 1635 | -9/Materials | Evolved 2 slots: Propulsion x1, Utility x1 1635 | -9/Materials | Identified YI-UF0's Bottomless Matter Pit 1636 | -9/Materials | Loaded intel: 12 terminal locations 1876 | -9/Materials | Discovered new exit (range 9) 2056 | -9/Materials | Discovered new exit (range 13) 2109 | -9/Materials | Build established: Scavenger-Mutant 2250 | -9/Materials | Discovered new exit (range 16) 2371 | -9/Materials | Discovered new exit (range 14) 2715 | -9/Materials | Discovered new exit (range 5) 3054 | -9/Materials | Discovered new exit (range 3) 3144 | -9/Materials | Entered Mines 3151 | -9/Mines | Received a Rocket Launcher from a helpful Derelict 3187 | -9/Mines | Deemed a non-threat by the Exiles lab entrance 3188 | -9/Mines | Discovered new exit (range 5) 3320 | -9/Mines | Discovered new exit (range 11) 3343 | -9/Mines | Met a Derelict who couldn't figure out how to use a Trap Extractor 3475 | -9/Mines | Discovered new exit (range 5) 3477 | -9/Mines | Learned Materials terminal intel 3517 | -9/Mines | Learned location of Storage (-9) 3945 | -9/Mines | A weapon hastily lodged in a ceiling crevice suddenly fell to the ground 4250 | -9/Mines | Entered Exiles 4289 | -9/Exiles | Met 8R-AWN 4316 | -9/Exiles | Met EX-HEX 4390 | -9/Exiles | Met EX-DEC 4420 | -9/Exiles | Learned location of Zion (-6) 4476 | -9/Exiles | Discovered new exit (range 12) 4806 | -9/Exiles | Attacked by the Exiles 4933 | -9/Exiles | Core integrity fell below 50% 4987 | -9/Exiles | Lost 7 parts (1p4n2w) 5045 | -9/Exiles | Core integrity fell below 20% 5048 | -9/Exiles | Destroyed 8R-AWN 5101 | -9/Exiles | Lost 5 parts (1n1u3w) 5336 | -9/Exiles | Destroyed by EX-DEC with AWS/EX-DEC Last Messages --------------- 05086_ Identified Exp. Heat Sink. 05089_ Acquired Rnf. Fission Core. 05103_ Acquired 12 matter. 05105_ Acquired 7 matter. 05143_ Destroyed Prototype Ballistic Cannon. 05159_ DAS Turret suffers critical hit (Impale). 05159_ DAS Turret destroyed. 05167_ Dropped YI-UF0's Bottomless Matter Pit. 05168_ Extracted 189 matter. 05168_ Acquired YI-UF0's Bottomless Matter Pit. 05184_ Sneak attack on A-02 Transporter. 05184_ A-02 Transporter destroyed. 05186_ Acquired 52 matter. 05187_ Sneak attack on A-02 Transporter. 05187_ A-02 Transporter destroyed. 05190_ Sneak attack on A-02 Transporter. 05190_ A-02 Transporter destroyed. 05192_ Acquired Lgt. Treads. 05201_ Acquired 107 matter. 05331_ GM-J5T destroyed. Map ----- +----------------------------------------------------+ | ??????????????????#"""" ""## ##""" | | ??????????????????#"" ""#### ###### | | ??????????????????#" """"##??# #????# | | ??????????????????#""" """#???# #????? | | ??????????????????## ""##??#! "!#?? | | ???????????????????#"" """##???#" !#?? | | ???????????????????##""" ##????#" "#?? | | ????????????????????##"""" ##?????#!!""!"#?? | | ?????????????????????### #??????########?? | | ???????????????????????##### ##???????????????? | | ???????????????????????????## #????????????????? | | ????????????????????????????# #????????????????? | | ????????????????????????????# #????????????????? | | ????????????????????????????# #????????????????? | | ????????????????????????????# #????????????????? | | ????????????????????????????# #????????????????? | | ??????????????????""????????# #????????????????? | | ??????????????????" "??????# #????????????????? | | ??????????????????"" ??????# #????????????????? | | ??????????????????"" ?????# #????????????????? | | ????????????????####"""###### ######???????????? | | ????????????????"""" """""" * """""""#?????????? | | ??????????? """"""" z %= "#?????????? | | ?????????? z c = " ???????? | | ?????????? z " ???????? | | ?????????? c@ " ???????? | | ?????????? "" #"????????? | | ??????????? " """"" " """" """""#?????????? | | ????????????????"###"""########"""######?????????? | | ??????????????????"" ???????? ""?????????????? | | ??????????????????""" ????????? """?????????????? | | ???????????????????????????????"""""?????????????? | | ??????????????????????????????? """??????????????? | | ?????????????????????????????????????????????????? | | ?????????????????????????????????????????????????? | | ?????????????????????????????????????????????????? | | ?????????????????????????????????????????????????? | | ?????????????????????????????????????????????????? | | ?????????????????????????????????????????????????? | | | | | | | | | | | | | | | | | | | | | | | +----------------------------------------------------+ Best States ------------- Heat Dissipation 28 Energy Generation 19 Energy Capacity 310 Matter Stores 300 Matter Capacity 300 Sight Range 16 Terrain Scan Density 10 Armor Coverage 150 Propulsion Shielding 33 Evasion (%) 55 Targeting Accuracy 6 Recoil Reduction 3 Item Schematics ----------------- None Robot Schematics ------------------ None Fabricated ------------ Nothing Alien Tech Used ----------------- None Achievements -------------- None Challenges ------------ None Game ------ Seed RestorationAluminumProjector Manual? 0 Play Time 00:25:30 Cumulative 452.7 hours Start 2023.10.21 @ 14:17:58 End 2023.10.21 @ 14:38:18 Sessions 1 Manual Loads 0 Difficulty Rogue Special Mode None Game No. 531 Rogue 444 Adventurer 87 Explorer 0 Win Type - Total 25 Types 8/0/14/1/1/0/1/0/0 Lore% 89 Gallery% 92 Achievement% 76 Wizard Run 0 Options --------- ASCII 0 Keyboard 1 Movement Numpad Keybinds 0 Fullscreen 1 Font 18/SmallcapsGlow Map View 76x50 Tactical HUD 1 Map Filters NONE Filters NONE Steam 1 RUN: 31cb39f9-34d5-4895-bc50-8e3a1761152b